[Event "Betsys MČR v online bleskovém šachu 2021"]
[Site "Chess.com"]
[Date "2021.04.17"]
[Round "3"]
[White "Anyna"]
[Black "dnovotny"]
[Result "0-1"]
[WhiteElo "1172"]
[BlackElo "1780"]
[TimeControl "180+1"]
[EndTime "9:27:14 PDT"]
[Termination "Uživatel dnovotny zvítězil na čas"]

1. d4 {[%clk 0:02:58.5]} 1... Nf6 {[%clk 0:02:56.8]} 2. Nf3 {[%clk 0:02:58.2]}
2... c5 {[%clk 0:02:54.8]} 3. e3 {[%clk 0:02:57.8]} 3... e6 {[%clk 0:02:49.3]}
4. Bd3 {[%clk 0:02:56.2]} 4... d5 {[%clk 0:02:40.7]} 5. c3 {[%clk 0:02:54.5]}
5... b6 {[%clk 0:02:31.3]} 6. O-O {[%clk 0:02:46.7]} 6... Bb7 {[%clk 0:02:30]}
7. Nbd2 {[%clk 0:02:44.8]} 7... Bd6 {[%clk 0:02:20.7]} 8. Qe2 {[%clk 0:02:42.2]}
8... O-O {[%clk 0:02:13.3]} 9. Re1 {[%clk 0:02:42.2]} 9... Re8 {[%clk
0:02:10.5]} 10. c4 {[%clk 0:02:09.3]} 10... Nbd7 {[%clk 0:01:55.5]} 11. cxd5
{[%clk 0:02:02.7]} 11... Nxd5 {[%clk 0:01:42.6]} 12. e4 {[%clk 0:01:57.9]} 12...
Nf4 {[%clk 0:01:40.3]} 13. Qe3 {[%clk 0:01:51.8]} 13... cxd4 {[%clk 0:01:19.9]}
14. Nxd4 {[%clk 0:01:41.6]} 14... Nxd3 {[%clk 0:01:07.8]} 15. Qxd3 {[%clk
0:01:33.6]} 15... Nc5 {[%clk 0:01:06.4]} 16. Qe3 {[%clk 0:01:16.1]} 16... Qf6
{[%clk 0:00:28.5]} 17. N2f3 {[%clk 0:01:06.8]} 17... Nxe4 {[%clk 0:00:19.4]} 18.
Re2 {[%clk 0:00:41.7]} 18... Bc5 {[%clk 0:00:18.8]} 19. b3 {[%clk 0:00:29.5]}
19... e5 {[%clk 0:00:18]} 20. Bb2 {[%clk 0:00:25.2]} 20... exd4 {[%clk
0:00:18.1]} 21. Bxd4 {[%clk 0:00:24.6]} 21... Bxd4 {[%clk 0:00:17.6]} 22. Qxd4
{[%clk 0:00:22.3]} 22... Qxd4 {[%clk 0:00:15.5]} 23. Nxd4 {[%clk 0:00:18.9]}
23... Nc3 {[%clk 0:00:13.5]} 24. Rxe8+ {[%clk 0:00:15.4]} 24... Rxe8 {[%clk
0:00:14.4]} 25. Rc1 {[%clk 0:00:12.9]} 25... Nxa2 {[%clk 0:00:11.5]} 26. Ra1
{[%clk 0:00:09.4]} 26... Nc3 {[%clk 0:00:06.8]} 27. Rc1 {[%clk 0:00:08.8]} 27...
Bd5 {[%clk 0:00:05]} 28. Nf3 {[%clk 0:00:06.2]} 28... Ne2+ {[%clk 0:00:04.5]}
29. Kf1 {[%clk 0:00:03.7]} 29... Nxc1 {[%clk 0:00:05.4]} 0-1

[Event "Betsys MČR v online bleskovém šachu 2021"]
[Site "Chess.com"]
[Date "2021.04.17"]
[Round "3"]
[White "kubajss"]
[Black "dino5517"]
[Result "0-1"]
[WhiteElo "877"]
[BlackElo "1392"]
[TimeControl "180+1"]
[EndTime "9:27:14 PDT"]
[Termination "Uživatel dino5517 zvítězil na čas"]

1. e4 {[%clk 0:03:00.9]} 1... e5 {[%clk 0:02:59]} 2. Nf3 {[%clk 0:03:01.1]} 2...
Nf6 {[%clk 0:02:58.6]} 3. Nc3 {[%clk 0:02:59.5]} 3... Bc5 {[%clk 0:02:56.3]} 4.
Bc4 {[%clk 0:02:59.2]} 4... Nc6 {[%clk 0:02:44.7]} 5. h3 {[%clk 0:02:56.9]} 5...
Nd4 {[%clk 0:02:38.6]} 6. d3 {[%clk 0:02:48.9]} 6... Nxf3+ {[%clk 0:02:35.7]} 7.
Qxf3 {[%clk 0:02:48.6]} 7... d6 {[%clk 0:02:29.9]} 8. Bg5 {[%clk 0:02:47.8]}
8... Be6 {[%clk 0:02:24.6]} 9. Bb3 {[%clk 0:02:41.2]} 9... Bxb3 {[%clk
0:02:22.1]} 10. axb3 {[%clk 0:02:41]} 10... Qe7 {[%clk 0:02:20.3]} 11. O-O
{[%clk 0:02:40.2]} 11... O-O-O {[%clk 0:02:18.8]} 12. Nd5 {[%clk 0:02:39.4]}
12... Qe6 {[%clk 0:02:10.6]} 13. Bxf6 {[%clk 0:02:13]} 13... gxf6 {[%clk
0:02:09]} 14. Nxf6 {[%clk 0:02:10.6]} 14... h5 {[%clk 0:01:59]} 15. Nxh5 {[%clk
0:02:02.2]} 15... Rdg8 {[%clk 0:01:53.5]} 16. Nf6 {[%clk 0:01:31.5]} 16... Rg6
{[%clk 0:01:49.2]} 17. Ng4 {[%clk 0:01:24.7]} 17... Kb8 {[%clk 0:01:46.8]} 18.
Rfd1 {[%clk 0:01:04.8]} 18... Bd4 {[%clk 0:01:32.4]} 19. c3 {[%clk 0:00:54.8]}
19... Bb6 {[%clk 0:01:30.9]} 20. b4 {[%clk 0:00:52.2]} 20... c5 {[%clk 0:01:29]}
21. Ra4 {[%clk 0:00:42.2]} 21... cxb4 {[%clk 0:01:24.6]} 22. Rxb4 {[%clk
0:00:40.4]} 22... Bd8 {[%clk 0:01:21.4]} 23. Ra1 {[%clk 0:00:31.2]} 23... b6
{[%clk 0:01:19.1]} 24. d4 {[%clk 0:00:21.6]} 24... exd4 {[%clk 0:01:03.8]} 25.
cxd4 {[%clk 0:00:21.6]} 25... Bc7 {[%clk 0:00:53.3]} 26. d5 {[%clk 0:00:21]}
26... Qe7 {[%clk 0:00:45.5]} 27. Qa3 {[%clk 0:00:20.2]} 27... a5 {[%clk
0:00:38.9]} 28. Rc4 {[%clk 0:00:14.9]} 28... Qh4 {[%clk 0:00:22.8]} 29. Qf3
{[%clk 0:00:13.3]} 29... Qe7 {[%clk 0:00:18.1]} 30. Rac1 {[%clk 0:00:12.2]}
30... Rc8 {[%clk 0:00:13.3]} 31. Qb3 {[%clk 0:00:05.5]} 31... Rgg8 {[%clk
0:00:09.8]} 32. Rc6 {[%clk 0:00:02.4]} 32... Rge8 {[%clk 0:00:06.7]} 0-1

[Event "Betsys MČR v online bleskovém šachu 2021"]
[Site "Chess.com"]
[Date "2021.04.17"]
[Round "3"]
[White "FrantisekP"]
[Black "Fafin1"]
[Result "1-0"]
[WhiteElo "1627"]
[BlackElo "1134"]
[TimeControl "180+1"]
[EndTime "9:27:15 PDT"]
[Termination "Uživatel FrantisekP zvítězil na čas"]

1. d4 {[%clk 0:03:00.9]} 1... d5 {[%clk 0:02:58.7]} 2. Bf4 {[%clk 0:03:01.3]}
2... Nc6 {[%clk 0:02:57.2]} 3. e3 {[%clk 0:02:56.8]} 3... Bf5 {[%clk 0:02:56.3]}
4. c3 {[%clk 0:02:52.2]} 4... e6 {[%clk 0:02:55.7]} 5. Bd3 {[%clk 0:02:51.9]}
5... Nge7 {[%clk 0:02:51.1]} 6. Nf3 {[%clk 0:02:47.9]} 6... g6 {[%clk
0:02:49.9]} 7. h3 {[%clk 0:02:44.5]} 7... Bxd3 {[%clk 0:02:45.3]} 8. Qxd3 {[%clk
0:02:44.2]} 8... Bg7 {[%clk 0:02:44.3]} 9. Nbd2 {[%clk 0:02:40.5]} 9... O-O
{[%clk 0:02:40.1]} 10. O-O {[%clk 0:02:37.1]} 10... a6 {[%clk 0:02:36.3]} 11.
Rfe1 {[%clk 0:02:37.3]} 11... b5 {[%clk 0:02:34.2]} 12. e4 {[%clk 0:02:33.7]}
12... dxe4 {[%clk 0:02:32.1]} 13. Qxe4 {[%clk 0:02:18.4]} 13... Qd7 {[%clk
0:02:11.4]} 14. Rad1 {[%clk 0:02:09.9]} 14... Nf5 {[%clk 0:01:55.2]} 15. Nb3
{[%clk 0:01:50.5]} 15... Nce7 {[%clk 0:01:47]} 16. Nc5 {[%clk 0:01:45.4]} 16...
Qc8 {[%clk 0:01:41.4]} 17. Ne5 {[%clk 0:01:36.4]} 17... Bxe5 {[%clk 0:01:38.6]}
18. Bxe5 {[%clk 0:01:36.6]} 18... Nd5 {[%clk 0:01:33.8]} 19. a3 {[%clk
0:01:20.4]} 19... a5 {[%clk 0:01:29.9]} 20. Qc2 {[%clk 0:01:12]} 20... b4 {[%clk
0:01:18.9]} 21. axb4 {[%clk 0:01:06.5]} 21... axb4 {[%clk 0:01:17.7]} 22. Ra1
{[%clk 0:00:48.1]} 22... bxc3 {[%clk 0:01:09.9]} 23. bxc3 {[%clk 0:00:39.8]}
23... c6 {[%clk 0:01:01.1]} 24. Rxa8 {[%clk 0:00:36.3]} 24... Qxa8 {[%clk
0:00:59.4]} 25. Nd7 {[%clk 0:00:34.3]} 25... Rd8 {[%clk 0:00:50.9]} 26. Nf6+
{[%clk 0:00:32]} 26... Nxf6 {[%clk 0:00:48.3]} 27. Bxf6 {[%clk 0:00:32.9]} 27...
Rd5 {[%clk 0:00:44]} 28. Re5 {[%clk 0:00:30.1]} 28... Nd6 {[%clk 0:00:32.1]} 29.
Rxd5 {[%clk 0:00:17]} 29... cxd5 {[%clk 0:00:30.8]} 30. Qd2 {[%clk 0:00:15.7]}
30... Ne4 {[%clk 0:00:29.5]} 31. Qf4 {[%clk 0:00:12.9]} 31... Qa1+ {[%clk
0:00:21.5]} 32. Kh2 {[%clk 0:00:12.9]} 32... Qxc3 {[%clk 0:00:19.5]} 33. Be5
{[%clk 0:00:11.8]} 33... Qc2 {[%clk 0:00:14.4]} 34. Qh6 {[%clk 0:00:10.2]} 1-0

[Event "Betsys MČR v online bleskovém šachu 2021"]
[Site "Chess.com"]
[Date "2021.04.17"]
[Round "3"]
[White "Berzeger"]
[Black "TomSedmihradsky"]
[Result "0-1"]
[WhiteElo "1021"]
[BlackElo "1447"]
[TimeControl "180+1"]
[EndTime "9:27:15 PDT"]
[Termination "Uživatel TomSedmihradsky zvítězil matem"]

1. e4 {[%clk 0:03:00.9]} 1... e5 {[%clk 0:02:58.6]} 2. Nf3 {[%clk 0:03:00.9]}
2... Nc6 {[%clk 0:02:56.8]} 3. Bc4 {[%clk 0:03:01]} 3... Nf6 {[%clk 0:02:53.4]}
4. O-O {[%clk 0:02:57.3]} 4... Bc5 {[%clk 0:02:50.1]} 5. Nc3 {[%clk 0:02:54]}
5... d6 {[%clk 0:02:47.6]} 6. d3 {[%clk 0:02:47]} 6... Be6 {[%clk 0:02:43.2]} 7.
Bxe6 {[%clk 0:02:27.6]} 7... fxe6 {[%clk 0:02:42.1]} 8. Bg5 {[%clk 0:02:25.6]}
8... h6 {[%clk 0:02:30.9]} 9. Bh4 {[%clk 0:02:25.6]} 9... g5 {[%clk 0:02:26.2]}
10. Bg3 {[%clk 0:02:25.3]} 10... Qe7 {[%clk 0:02:24.3]} 11. Qe2 {[%clk
0:02:06.8]} 11... O-O-O {[%clk 0:02:21]} 12. Rad1 {[%clk 0:01:58.3]} 12... Nh5
{[%clk 0:02:11.7]} 13. a3 {[%clk 0:01:43.6]} 13... Nf4 {[%clk 0:02:08.5]} 14.
Bxf4 {[%clk 0:01:28.9]} 14... gxf4 {[%clk 0:02:07.8]} 15. b4 {[%clk 0:01:25.8]}
15... Bd4 {[%clk 0:02:03.9]} 16. Nxd4 {[%clk 0:01:24.9]} 16... Nxd4 {[%clk
0:02:03]} 17. Qh5 {[%clk 0:01:15.1]} 17... Rdg8 {[%clk 0:01:52.5]} 18. g3 {[%clk
0:01:03.1]} 18... Rg5 {[%clk 0:01:47.3]} 19. Qh3 {[%clk 0:00:57]} 19... Qf7
{[%clk 0:01:30.6]} 20. Kh1 {[%clk 0:00:50.8]} 20... Rh5 {[%clk 0:01:26.9]} 21.
Qg2 {[%clk 0:00:49.7]} 21... f3 {[%clk 0:01:25.5]} 22. Qg1 {[%clk 0:00:44.4]}
22... Qg7 {[%clk 0:01:17.6]} 23. Rfe1 {[%clk 0:00:41.5]} 23... Qg4 {[%clk
0:01:15.5]} 24. Rd2 {[%clk 0:00:26.5]} 24... Rg8 {[%clk 0:01:03.9]} 25. Nd1
{[%clk 0:00:25.4]} 25... Ne2 {[%clk 0:00:48.1]} 26. Qf1 {[%clk 0:00:20]} 26...
Kd7 {[%clk 0:00:25.5]} 27. Ne3 {[%clk 0:00:20]} 27... Qg5 {[%clk 0:00:20.4]} 28.
Rdxe2 {[%clk 0:00:15.9]} 28... fxe2 {[%clk 0:00:19.5]} 29. Rxe2 {[%clk
0:00:16.8]} 29... Rg6 {[%clk 0:00:17.9]} 30. Qb1 {[%clk 0:00:14.1]} 30... c6
{[%clk 0:00:15.7]} 31. c4 {[%clk 0:00:14.4]} 31... b6 {[%clk 0:00:15.1]} 32. b5
{[%clk 0:00:13.4]} 32... c5 {[%clk 0:00:14.3]} 33. a4 {[%clk 0:00:13.1]} 33...
Kc7 {[%clk 0:00:12.1]} 34. Ng2 {[%clk 0:00:12]} 34... Kd7 {[%clk 0:00:10.3]} 35.
Nh4 {[%clk 0:00:09.5]} 35... Rxh4 {[%clk 0:00:09.2]} 36. gxh4 {[%clk 0:00:09.2]}
36... Qg2# {[%clk 0:00:08.7]} 0-1

[Event "Betsys MČR v online bleskovém šachu 2021"]
[Site "Chess.com"]
[Date "2021.04.17"]
[Round "3"]
[White "VitaRasik"]
[Black "Trener-Pokrocili"]
[Result "1-0"]
[WhiteElo "2619"]
[BlackElo "2242"]
[TimeControl "180+1"]
[EndTime "9:27:17 PDT"]
[Termination "Uživatel VitaRasik zvítězil na čas"]

1. e4 {[%clk 0:03:00.9]} 1... g6 {[%clk 0:02:59.4]} 2. d4 {[%clk 0:02:59.9]}
2... Bg7 {[%clk 0:02:59.6]} 3. Nc3 {[%clk 0:02:59.9]} 3... a6 {[%clk 0:02:59.6]}
4. f4 {[%clk 0:02:59.5]} 4... d5 {[%clk 0:02:58]} 5. e5 {[%clk 0:02:55]} 5... h5
{[%clk 0:02:57.4]} 6. h3 {[%clk 0:02:43.3]} 6... Nh6 {[%clk 0:02:52.7]} 7. Be3
{[%clk 0:02:43]} 7... Nf5 {[%clk 0:02:51.6]} 8. Bf2 {[%clk 0:02:43.1]} 8... e6
{[%clk 0:02:50.8]} 9. Nf3 {[%clk 0:02:42.6]} 9... h4 {[%clk 0:02:46.6]} 10. Bd3
{[%clk 0:02:38.5]} 10... Bf8 {[%clk 0:02:43.2]} 11. O-O {[%clk 0:02:35.9]} 11...
Be7 {[%clk 0:02:42.5]} 12. Ne2 {[%clk 0:02:33.7]} 12... Nd7 {[%clk 0:02:29.8]}
13. Qd2 {[%clk 0:02:16.7]} 13... b6 {[%clk 0:02:19]} 14. b3 {[%clk 0:02:15]}
14... Bb7 {[%clk 0:02:16.4]} 15. Rfd1 {[%clk 0:02:13.8]} 15... Kf8 {[%clk
0:02:10.9]} 16. c4 {[%clk 0:02:07.4]} 16... c5 {[%clk 0:01:53.8]} 17. Rac1
{[%clk 0:02:01.5]} 17... Kg7 {[%clk 0:01:51.4]} 18. cxd5 {[%clk 0:01:39.8]}
18... Bxd5 {[%clk 0:01:50.1]} 19. Ne1 {[%clk 0:01:37.1]} 19... Nxd4 {[%clk
0:01:35.2]} 20. Nxd4 {[%clk 0:01:33.5]} 20... cxd4 {[%clk 0:01:35.3]} 21. Bxd4
{[%clk 0:01:33.7]} 21... Nc5 {[%clk 0:01:31.7]} 22. Bf1 {[%clk 0:01:30.2]} 22...
Ne4 {[%clk 0:01:22]} 23. Qe3 {[%clk 0:01:30.2]} 23... Bc5 {[%clk 0:01:03.2]} 24.
Bxc5 {[%clk 0:01:25.3]} 24... Nxc5 {[%clk 0:01:02]} 25. b4 {[%clk 0:01:20.2]}
25... Nd7 {[%clk 0:01:00.2]} 26. a3 {[%clk 0:01:14.4]} 26... a5 {[%clk
0:00:59.7]} 27. Bc4 {[%clk 0:01:10.8]} 27... Bxc4 {[%clk 0:00:39.5]} 28. Rxc4
{[%clk 0:01:10]} 28... Qe8 {[%clk 0:00:39.7]} 29. Rc7 {[%clk 0:01:06.2]} 29...
Nf8 {[%clk 0:00:23.7]} 30. Nf3 {[%clk 0:01:02.3]} 30... axb4 {[%clk 0:00:22.4]}
31. axb4 {[%clk 0:01:01.7]} 31... Rc8 {[%clk 0:00:20.3]} 32. Qxb6 {[%clk
0:00:57.9]} 32... Rxc7 {[%clk 0:00:13.7]} 33. Qxc7 {[%clk 0:00:57.9]} 33... Nh7
{[%clk 0:00:14]} 34. Rd7 {[%clk 0:00:54.4]} 34... Rf8 {[%clk 0:00:13.9]} 35. b5
{[%clk 0:00:49.7]} 35... Qa8 {[%clk 0:00:13.5]} 36. b6 {[%clk 0:00:42.3]} 36...
Qe4 {[%clk 0:00:13.1]} 37. Rd4 {[%clk 0:00:36.4]} 37... Qe3+ {[%clk 0:00:12.8]}
38. Kh2 {[%clk 0:00:36.7]} 38... g5 {[%clk 0:00:12]} 39. fxg5 {[%clk 0:00:31.8]}
39... Nxg5 {[%clk 0:00:11.1]} 40. Rg4 {[%clk 0:00:31.7]} 40... Kh6 {[%clk
0:00:07.1]} 41. Rxh4+ {[%clk 0:00:29.6]} 41... Kg6 {[%clk 0:00:06.5]} 42. Rg4
{[%clk 0:00:29.9]} 42... f6 {[%clk 0:00:03.5]} 43. exf6 {[%clk 0:00:29.5]} 1-0

[Event "Betsys MČR v online bleskovém šachu 2021"]
[Site "Chess.com"]
[Date "2021.04.17"]
[Round "3"]
[White "petrgnojek"]
[Black "Lunaticx"]
[Result "0-1"]
[WhiteElo "2260"]
[BlackElo "3005"]
[TimeControl "180+1"]
[EndTime "9:27:18 PDT"]
[Termination "Uživatel Lunaticx zvítězil na čas"]

1. d4 {[%clk 0:03:00.9]} 1... Nf6 {[%clk 0:02:59.8]} 2. c4 {[%clk 0:03:01]} 2...
e6 {[%clk 0:03:00.3]} 3. Nc3 {[%clk 0:03:00.5]} 3... Bb4 {[%clk 0:03:00.1]} 4.
Qc2 {[%clk 0:03:00.7]} 4... O-O {[%clk 0:02:56.1]} 5. e4 {[%clk 0:02:59.8]} 5...
d6 {[%clk 0:02:56.2]} 6. Nf3 {[%clk 0:02:58.5]} 6... Nc6 {[%clk 0:02:53.4]} 7.
Bd3 {[%clk 0:02:47.4]} 7... e5 {[%clk 0:02:52.9]} 8. a3 {[%clk 0:02:31]} 8...
exd4 {[%clk 0:02:45]} 9. axb4 {[%clk 0:02:28.1]} 9... Nxb4 {[%clk 0:02:44.9]}
10. Qe2 {[%clk 0:02:24]} 10... Nxd3+ {[%clk 0:02:44.4]} 11. Qxd3 {[%clk
0:02:22.8]} 11... dxc3 {[%clk 0:02:45.3]} 12. bxc3 {[%clk 0:02:22]} 12... Nxe4
{[%clk 0:02:44.4]} 13. O-O {[%clk 0:02:21.7]} 13... Nc5 {[%clk 0:02:43.1]} 14.
Qc2 {[%clk 0:02:20.1]} 14... h6 {[%clk 0:02:42.4]} 15. Be3 {[%clk 0:02:19.3]}
15... Qf6 {[%clk 0:02:41]} 16. Bd4 {[%clk 0:02:16.7]} 16... Qg6 {[%clk
0:02:39.3]} 17. Qxg6 {[%clk 0:01:53.5]} 17... fxg6 {[%clk 0:02:38.8]} 18. Rfe1
{[%clk 0:01:53.7]} 18... Bg4 {[%clk 0:02:33.9]} 19. Nh4 {[%clk 0:01:48.2]} 19...
g5 {[%clk 0:02:31.4]} 20. Ng6 {[%clk 0:01:47.9]} 20... Rfe8 {[%clk 0:02:31.3]}
21. Ne7+ {[%clk 0:01:45.3]} 21... Kf7 {[%clk 0:02:24.8]} 22. Nd5 {[%clk
0:01:46.2]} 22... Rxe1+ {[%clk 0:02:23]} 23. Rxe1 {[%clk 0:01:45.1]} 23... Ne6
{[%clk 0:02:23.3]} 24. f3 {[%clk 0:01:38.8]} 24... Bf5 {[%clk 0:02:22.3]} 25. g4
{[%clk 0:01:37.1]} 25... Nxd4 {[%clk 0:02:09.7]} 26. cxd4 {[%clk 0:01:36.4]}
26... Bd3 {[%clk 0:02:06.1]} 27. Re7+ {[%clk 0:01:33.9]} 27... Kf8 {[%clk
0:02:06.3]} 28. Rxc7 {[%clk 0:01:33.9]} 28... a5 {[%clk 0:02:06.7]} 29. Nb6
{[%clk 0:01:07.3]} 29... Ra6 {[%clk 0:02:00]} 30. Na4 {[%clk 0:00:42.3]} 30...
Bc2 {[%clk 0:01:52.9]} 31. Nc3 {[%clk 0:00:41.4]} 31... a4 {[%clk 0:01:52.6]}
32. Rxb7 {[%clk 0:00:35.4]} 32... a3 {[%clk 0:01:52.3]} 33. Na2 {[%clk
0:00:35.6]} 33... Bd3 {[%clk 0:01:44.9]} 34. Rb4 {[%clk 0:00:33.8]} 34... Be2
{[%clk 0:01:36.8]} 35. Kf2 {[%clk 0:00:33.1]} 35... Bd1 {[%clk 0:01:37.3]} 36.
c5 {[%clk 0:00:21.7]} 36... Ke7 {[%clk 0:01:26.4]} 37. Ke3 {[%clk 0:00:20.4]}
37... Ke6 {[%clk 0:01:21.1]} 38. Rb6 {[%clk 0:00:18.7]} 38... Rxb6 {[%clk
0:01:21.2]} 39. cxb6 {[%clk 0:00:18.5]} 39... Kd7 {[%clk 0:01:22.1]} 40. Kd2
{[%clk 0:00:14.4]} 40... Bb3 {[%clk 0:01:21.7]} 41. Nc1 {[%clk 0:00:13.4]} 41...
Bc4 {[%clk 0:01:19.7]} 42. Kc3 {[%clk 0:00:13.3]} 42... d5 {[%clk 0:01:19.9]}
43. Nb3 {[%clk 0:00:06.6]} 43... Kc6 {[%clk 0:01:13.2]} 44. Na1 {[%clk
0:00:06.1]} 44... Kxb6 {[%clk 0:01:13]} 45. Kb4 {[%clk 0:00:06.8]} 45... a2
{[%clk 0:01:13.3]} 46. Kc3 {[%clk 0:00:04.9]} 46... Kc6 {[%clk 0:01:10]} 47. Nc2
{[%clk 0:00:04.1]} 47... Kd6 {[%clk 0:01:10.6]} 48. Na1 {[%clk 0:00:02.6]} 48...
g6 {[%clk 0:01:09.8]} 49. Kb2 {[%clk 0:00:02.2]} 49... Be2 {[%clk 0:01:09.2]}
50. Kxa2 {[%clk 0:00:02]} 50... Bxf3 {[%clk 0:01:09.7]} 51. Kb2 {[%clk
0:00:02.9]} 51... Bxg4 {[%clk 0:01:10]} 52. Kc3 {[%clk 0:00:03.8]} 52... Bd1
{[%clk 0:01:09.5]} 53. Kd2 {[%clk 0:00:02.7]} 53... Ba4 {[%clk 0:01:09.7]} 54.
Ke3 {[%clk 0:00:02.6]} 54... h5 {[%clk 0:01:09.9]} 55. Kf3 {[%clk 0:00:02.1]}
55... Kc6 {[%clk 0:01:10.3]} 56. Ke3 {[%clk 0:00:02.2]} 56... Kb5 {[%clk
0:01:10.8]} 57. Kd3 {[%clk 0:00:02.8]} 57... Kb4 {[%clk 0:01:11.3]} 58. h3
{[%clk 0:00:02.1]} 58... Ka3 {[%clk 0:01:09.2]} 0-1

[Event "Betsys MČR v online bleskovém šachu 2021"]
[Site "Chess.com"]
[Date "2021.04.17"]
[Round "3"]
[White "YoungMegaMind"]
[Black "tudlenudle"]
[Result "0-1"]
[WhiteElo "2251"]
[BlackElo "1920"]
[TimeControl "180+1"]
[EndTime "9:27:18 PDT"]
[Termination "Uživatel tudlenudle zvítězil po vzdání soupeře"]

1. Nf3 {[%clk 0:02:58.7]} 1... Nf6 {[%clk 0:02:58.3]} 2. e3 {[%clk 0:02:57.1]}
2... d5 {[%clk 0:02:57.9]} 3. b3 {[%clk 0:02:57.3]} 3... e6 {[%clk 0:02:57.4]}
4. Bb2 {[%clk 0:02:57.5]} 4... Be7 {[%clk 0:02:57.4]} 5. c4 {[%clk 0:02:56.8]}
5... O-O {[%clk 0:02:57.6]} 6. Nc3 {[%clk 0:02:56.4]} 6... c5 {[%clk 0:02:52.3]}
7. cxd5 {[%clk 0:02:48.6]} 7... exd5 {[%clk 0:02:51.7]} 8. d4 {[%clk 0:02:48.1]}
8... Nc6 {[%clk 0:02:42.3]} 9. Be2 {[%clk 0:02:42.6]} 9... Bg4 {[%clk
0:02:33.9]} 10. dxc5 {[%clk 0:02:29.7]} 10... Bxc5 {[%clk 0:02:31.7]} 11. O-O
{[%clk 0:02:26.3]} 11... a6 {[%clk 0:02:25.2]} 12. Rc1 {[%clk 0:02:21]} 12...
Ba7 {[%clk 0:02:15.5]} 13. Nd4 {[%clk 0:02:17.4]} 13... Bxe2 {[%clk 0:02:14.3]}
14. Ncxe2 {[%clk 0:02:18.3]} 14... Rc8 {[%clk 0:02:07.5]} 15. Ba3 {[%clk
0:02:14.6]} 15... Re8 {[%clk 0:02:06.7]} 16. Nxc6 {[%clk 0:02:13.7]} 16... bxc6
{[%clk 0:02:02.1]} 17. Bc5 {[%clk 0:02:12.6]} 17... Bb8 {[%clk 0:02:00.7]} 18.
Nd4 {[%clk 0:02:00.8]} 18... Ne4 {[%clk 0:02:00.8]} 19. Qd3 {[%clk 0:01:38.6]}
19... Nxc5 {[%clk 0:01:41.8]} 20. Qf5 {[%clk 0:01:29.9]} 20... Qd6 {[%clk
0:01:23.4]} 21. g3 {[%clk 0:01:28.6]} 21... Ne6 {[%clk 0:01:22.5]} 22. Nf3
{[%clk 0:01:25.2]} 22... g6 {[%clk 0:01:14.8]} 23. Qd3 {[%clk 0:01:22.8]} 23...
Nc5 {[%clk 0:01:09.9]} 24. Qd4 {[%clk 0:01:14.1]} 24... Ne4 {[%clk 0:01:08.6]}
25. Qa4 {[%clk 0:01:04.3]} 25... c5 {[%clk 0:00:59.4]} 26. Rc2 {[%clk
0:00:45.2]} 26... Qf6 {[%clk 0:00:56.3]} 27. Ne1 {[%clk 0:00:43.4]} 27... Ng5
{[%clk 0:00:44.8]} 28. h4 {[%clk 0:00:39.7]} 28... Ne4 {[%clk 0:00:42.9]} 29.
Ng2 {[%clk 0:00:36.3]} 29... d4 {[%clk 0:00:35.2]} 30. exd4 {[%clk 0:00:19.8]}
30... cxd4 {[%clk 0:00:36.1]} 31. Re2 {[%clk 0:00:19.9]} 31... Nd6 {[%clk
0:00:28.1]} 32. Rd2 {[%clk 0:00:19.7]} 32... Nb5 {[%clk 0:00:25.3]} 33. Qb4
{[%clk 0:00:17.2]} 33... Rcd8 {[%clk 0:00:19.3]} 34. a4 {[%clk 0:00:17.2]} 34...
Nc3 {[%clk 0:00:19.4]} 35. Qa5 {[%clk 0:00:15.3]} 35... Qf3 {[%clk 0:00:15.6]}
36. Ne1 {[%clk 0:00:14.9]} 36... Qg4 {[%clk 0:00:15.2]} 37. Nd3 {[%clk 0:00:14]}
37... Ne4 {[%clk 0:00:14.8]} 38. Rdd1 {[%clk 0:00:11.5]} 38... Nxg3 {[%clk
0:00:14.5]} 39. fxg3 {[%clk 0:00:11.9]} 39... Qxg3+ {[%clk 0:00:15.4]} 0-1

[Event "Betsys MČR v online bleskovém šachu 2021"]
[Site "Chess.com"]
[Date "2021.04.17"]
[Round "3"]
[White "g4g5g4g5"]
[Black "doktorovak"]
[Result "1/2-1/2"]
[WhiteElo "2002"]
[BlackElo "1671"]
[TimeControl "180+1"]
[EndTime "9:27:18 PDT"]
[Termination "Remíza opakováním pozice"]

1. e4 {[%clk 0:03:00.9]} 1... c5 {[%clk 0:02:59.5]} 2. Nf3 {[%clk 0:02:59.7]}
2... Nc6 {[%clk 0:02:59.5]} 3. g3 {[%clk 0:02:59.3]} 3... e6 {[%clk 0:02:59.4]}
4. d3 {[%clk 0:02:58.5]} 4... Nge7 {[%clk 0:02:59.4]} 5. Bg2 {[%clk 0:02:57.9]}
5... Ng6 {[%clk 0:02:59.4]} 6. O-O {[%clk 0:02:57.1]} 6... Be7 {[%clk
0:02:59.3]} 7. c3 {[%clk 0:02:55.8]} 7... O-O {[%clk 0:02:59.1]} 8. d4 {[%clk
0:02:55]} 8... cxd4 {[%clk 0:02:58.5]} 9. cxd4 {[%clk 0:02:55]} 9... d5 {[%clk
0:02:59.1]} 10. e5 {[%clk 0:02:54.6]} 10... f5 {[%clk 0:02:54.1]} 11. exf6
{[%clk 0:02:49.3]} 11... Bxf6 {[%clk 0:02:54.1]} 12. Be3 {[%clk 0:02:46]} 12...
Qb6 {[%clk 0:02:53.2]} 13. Qd2 {[%clk 0:02:45.6]} 13... Bd7 {[%clk 0:02:50.3]}
14. Nc3 {[%clk 0:02:44.1]} 14... Nge7 {[%clk 0:02:44.5]} 15. h3 {[%clk
0:02:34.4]} 15... Nf5 {[%clk 0:02:43.9]} 16. Rad1 {[%clk 0:02:25.1]} 16... Rae8
{[%clk 0:02:24.9]} 17. Na4 {[%clk 0:02:20.9]} 17... Qc7 {[%clk 0:02:17.8]} 18.
Nc5 {[%clk 0:02:19.8]} 18... b6 {[%clk 0:02:15.5]} 19. Nxd7 {[%clk 0:02:18]}
19... Qxd7 {[%clk 0:02:15.6]} 20. Rfe1 {[%clk 0:02:17.6]} 20... Qb7 {[%clk
0:01:46]} 21. a3 {[%clk 0:01:58.8]} 21... Qa6 {[%clk 0:01:42.8]} 22. Bf1 {[%clk
0:01:56.7]} 22... Qa4 {[%clk 0:01:40.8]} 23. Bd3 {[%clk 0:01:27.6]} 23... Nxe3
{[%clk 0:01:39.4]} 24. fxe3 {[%clk 0:01:25.9]} 24... Na5 {[%clk 0:01:33.1]} 25.
Rf1 {[%clk 0:01:25.1]} 25... Nc4 {[%clk 0:01:30.6]} 26. Qe2 {[%clk 0:01:24.7]}
26... Qb3 {[%clk 0:01:19.9]} 27. Rb1 {[%clk 0:01:17.3]} 27... e5 {[%clk
0:01:11.6]} 28. dxe5 {[%clk 0:01:12.6]} 28... Nxe5 {[%clk 0:01:09.9]} 29. Nxe5
{[%clk 0:01:11.8]} 29... Rxe5 {[%clk 0:01:07.6]} 30. Rbe1 {[%clk 0:01:02.7]}
30... Rfe8 {[%clk 0:01:05.5]} 31. Qd2 {[%clk 0:00:48]} 31... Bg5 {[%clk
0:00:58.9]} 32. Kg2 {[%clk 0:00:44.6]} 32... Rxe3 {[%clk 0:00:53.2]} 33. Qf2
{[%clk 0:00:31.5]} 33... d4 {[%clk 0:00:45.6]} 34. Qf5 {[%clk 0:00:25.2]} 34...
g6 {[%clk 0:00:18.8]} 35. Qxg5 {[%clk 0:00:17.8]} 35... Rxe1 {[%clk 0:00:16.3]}
36. Rxe1 {[%clk 0:00:14.5]} 36... Rxe1 {[%clk 0:00:14.6]} 37. Qd8+ {[%clk
0:00:14.3]} 37... Kg7 {[%clk 0:00:14.9]} 38. Qxd4+ {[%clk 0:00:13.5]} 38... Kh6
{[%clk 0:00:13.9]} 39. Qf4+ {[%clk 0:00:13.4]} 39... Kg7 {[%clk 0:00:13.2]} 40.
Qd4+ {[%clk 0:00:13]} 40... Kh6 {[%clk 0:00:13.5]} 41. Qf4+ {[%clk 0:00:12.6]}
41... Kg7 {[%clk 0:00:13.6]} 42. Qd4+ {[%clk 0:00:12.4]} 1/2-1/2